bitfinex/quotes_BTCUSD_20250212
["timestamp","ask_amount","ask_price","bid_price","bid_amount"]
[1739331693797,0.33057405,95799.0,95798.0,0.09409655]
[1739331694274,0.37557405,95799.0,95798.0,0.09409655]
[1739331694715,0.37657405,95799.0,95798.0,0.09409655]
[1739331694922,0.37557405,95799.0,95798.0,0.09409655]
[1739331695122,0.37657405,95799.0,95798.0,0.09409655]
[1739331695435,0.38757405,95799.0,95798.0,0.09509655]
[1739331695865,0.38757405,95799.0,95798.0,0.00122365]
[1739331705641,0.41788513,95799.0,95798.0,0.00122365]
[1739331707251,0.38757405,95799.0,95798.0,0.00122365]
[1739331713166,0.38779792,95799.0,95798.0,0.00122365]
[1739331713489,0.232881,95797.0,95796.0,1.5e-07]
[1739331713687,0.38308465,95797.0,95796.0,1.5e-07]
[1739331714694,0.38408465,95797.0,95796.0,1.5e-07]
[1739331715059,0.38308465,95797.0,95796.0,1.5e-07]
[1739331715260,0.38408465,95797.0,95796.0,1.5e-07]
[1739331715470,0.47086735,95797.0,95796.0,1.5e-07]
[1739331715694,0.48486735,95797.0,95796.0,1.5e-07]
[1739331716085,0.47086735,95797.0,95796.0,1.5e-07]
[1739331716706,0.48486735,95797.0,95796.0,1.5e-07]
[1739331723201,0.81046735,95797.0,95796.0,1.5e-07]
[1739331726167,0.81069122,95797.0,95796.0,1.5e-07]
[1739331733796,0.96069122,95797.0,95796.0,1.5e-07]
[1739331735424,0.73781022,95797.0,95792.0,7.5e-07]
[1739331735611,0.25909065,95793.0,95792.0,7.5e-07]
[1739331735854,0.33959065,95793.0,95792.0,7.5e-07]
[1739331737002,0.34359065,95793.0,95792.0,7.5e-07]
[1739331737448,0.35459065,95793.0,95792.0,7.5e-07]
[1739331737775,0.35059065,95793.0,95792.0,7.5e-07]
[1739331738006,0.7786943,95793.0,95792.0,7.5e-07]
[1739331738231,0.68219065,95793.0,95792.0,7.5e-07]
[1739331738424,0.60169065,95793.0,95792.0,7.5e-07]
[1739331738894,0.59069065,95793.0,95792.0,7.5e-07]
[1739331739334,0.59869065,95793.0,95792.0,7.5e-07]
[1739331739796,0.6420283,95793.0,95792.0,7.5e-07]
[1739331740020,0.58869065,95793.0,95792.0,7.5e-07]
[1739331740247,0.60769065,95793.0,95792.0,0.00100075]
[1739331741091,0.59869065,95793.0,95792.0,7.5e-07]
[1739331741331,0.60369065,95793.0,95792.0,7.5e-07]
[1739331741539,0.6921943,95793.0,95792.0,7.5e-07]
[1739331741902,0.7061943,95793.0,95792.0,7.5e-07]
[1739331742311,0.208816,95778.0,95771.0,0.04729325]
[1739331742515,0.156617,95775.0,95771.0,0.04729325]
[1739331742715,0.156621,95772.0,95771.0,0.04729325]
[1739331743439,0.00078474,95774.0,95771.0,0.04729325]
[1739331743656,0.15740374,95774.0,95771.0,0.04729325]
[1739331744183,0.15662,95773.0,95771.0,0.04729325]
[1739331744314,0.20882,95776.0,95771.0,0.04729325]
[1739331744561,0.156618,95774.0,95771.0,0.04829325]
[1739331744788,0.156618,95774.0,95771.0,0.04729325]
[1739331745208,0.157618,95774.0,95770.0,0.0479]
[1739331745448,0.0575251,95773.0,95770.0,0.0479]
[1739331746511,0.0605251,95773.0,95770.0,0.0479]
[1739331747168,0.003,95773.0,95767.0,0.001]
[1739331748100,0.156618,95774.0,95766.0,0.02604652]
[1739331748335,0.156618,95774.0,95760.0,0.09641116]
[1739331748550,0.003,95773.0,95760.0,0.09641116]
[1739331749325,0.15662,95773.0,95760.0,0.09641116]
[1739331749539,0.036544,95772.0,95770.0,0.0001066]
[1739331751732,0.15962,95773.0,95770.0,0.0001066]
[1739331751978,0.15662,95773.0,95770.0,0.0001066]
[1739331752214,0.002,95772.0,95770.0,0.0001066]
[1739331752454,0.156623,95771.0,95760.0,0.12264901]
[1739331752689,0.156621,95773.0,95760.0,0.12264901]
[1739331752924,0.003,95773.0,95760.0,0.12264901]
[1739331753328,0.15962,95773.0,95760.0,0.12264901]
[1739331754238,0.15662,95773.0,95760.0,0.12264901]
[1739331754450,0.002,95771.0,95760.0,0.12264901]
[1739331754880,0.15662,95773.0,95760.0,0.12264901]
[1739331755500,0.2140455,95773.0,95760.0,0.12264901]
[1739331755822,0.2170455,95773.0,95760.0,0.12264901]
[1739331756219,0.0604255,95773.0,95760.0,0.12264901]
[1739331756480,0.003,95773.0,95761.0,0.03257089]
[1739331756898,0.003,95773.0,95767.0,0.156629]
[1739331757108,0.003,95773.0,95761.0,0.03257089]
[1739331757109,0.003,95773.0,95762.0,0.15104408]
[1739331757297,0.003,95773.0,95765.0,0.208844]
[1739331757511,0.156591,95791.0,95773.0,0.156618]
[1739331757731,0.0787,95801.0,95780.0,0.09630466]
[1739331757949,0.00078474,95800.0,95780.0,0.09630466]
[1739331758159,0.156593,95790.0,95780.0,0.09630466]
[1739331758367,0.365376,95792.0,95780.0,0.09630466]
[1739331758589,0.156591,95791.0,95780.0,0.09630466]
[1739331759659,0.15659,95791.0,95780.0,0.09630466]
[1739331759875,0.00022387,95797.0,95780.0,0.09630466]
[1739331760298,0.156588,95793.0,95780.0,0.09630466]
[1739331760500,0.003,95791.0,95780.0,0.09630466]
[1739331760708,0.156589,95792.0,95780.0,0.09630466]
[1739331760709,0.01,95790.0,95780.0,0.09630466]
[1739331761192,0.208776,95796.0,95780.0,0.09630466]
[1739331761403,0.15659,95792.0,95780.0,0.09630466]
[1739331761836,0.208792,95789.0,95780.0,0.09630466]
[1739331762050,0.00078474,95788.0,95780.0,0.0262996]
[1739331762222,0.01,95790.0,95780.0,0.0262996]
[1739331762437,0.01078474,95790.0,95770.0,0.24630466]
[1739331762641,0.156603,95784.0,95770.0,0.24630466]
[1739331763053,0.1566,95785.0,95770.0,0.24630466]
[1739331763255,0.1566,95785.0,95776.0,0.02137944]
[1739331763452,0.1566,95785.0,95770.0,0.23798876]
[1739331764274,0.156602,95784.0,95774.0,0.09366005]
[1739331764792,0.156602,95784.0,95776.0,0.02139408]
[1739331765843,0.157602,95784.0,95776.0,0.02139408]
[1739331766071,0.156602,95784.0,95776.0,0.02139408]
[1739331766287,0.006,95785.0,95776.0,0.02139408]
[1739331766715,0.001,95784.0,95776.0,0.02139408]
[1739331767306,0.006,95784.0,95770.0,0.25292866]
[1739331767435,0.156604,95783.0,95770.0,0.09630466]
[1739331767639,0.00078474,95782.0,95772.0,0.02100095]
[1739331768007,0.156603,95783.0,95772.0,0.02100095]
[1739331768229,0.006,95784.0,95772.0,0.02100095]
[1739331768588,0.00078474,95783.0,95772.0,0.02100095]
[1739331768801,0.00078474,95784.0,95772.0,0.02100095]
[1739331769001,0.156602,95785.0,95772.0,0.02100095]
[1739331769253,0.001,95783.0,95772.0,0.02100095]
[1739331769686,0.156601,95785.0,95771.0,0.156623]
[1739331769914,0.001,95783.0,95770.0,0.09630466]
[1739331770135,0.004,95782.0,95770.0,0.09630466]
[1739331770568,0.004,95782.0,95771.0,0.156622]
[1739331770777,0.001,95783.0,95771.0,0.156622]
[1739331770778,0.00178474,95783.0,95771.0,0.156622]
[1739331770984,0.00178474,95783.0,95770.0,0.09630466]
[1739331771187,0.001,95783.0,95772.0,0.15662]
[1739331771394,0.00178474,95783.0,95770.0,0.09630466]
[1739331771598,0.00178474,95783.0,95773.0,0.15662]
[1739331771802,0.003,95782.0,95772.0,0.156621]
[1739331772009,0.003,95782.0,95771.0,0.156623]
[1739331772250,0.003,95782.0,95771.0,0.0213704]
[1739331772446,0.003,95782.0,95773.0,0.15662]
[1739331772883,0.003,95782.0,95772.0,0.156621]
[1739331773111,0.156597,95787.0,95773.0,0.156619]
[1739331773307,0.23702593,95787.0,95773.0,0.156619]
[1739331773505,0.003,95783.0,95771.0,0.021477]
[1739331773746,0.003,95783.0,95773.0,0.156619]
[1739331773957,0.00022387,95784.0,95773.0,0.156619]
[1739331774809,0.00022387,95784.0,95774.0,0.156618]
[1739331775218,0.003,95783.0,95774.0,0.156618]
[1739331776197,0.003,95783.0,95775.0,0.156617]
[1739331776905,0.00022387,95784.0,95775.0,0.156617]
[1739331777138,0.00322387,95784.0,95775.0,0.156617]
[1739331777581,0.00022387,95784.0,95776.0,0.156614]
[1739331778085,0.001,95783.0,95776.0,0.156614]
[1739331779020,0.001,95783.0,95777.0,0.156613]
[1739331779223,0.00022387,95784.0,95777.0,0.156613]
[1739331780493,0.00122387,95784.0,95777.0,0.156613]
[1739331780917,0.00022387,95784.0,95777.0,0.156613]
[1739331781348,0.00122387,95784.0,95777.0,0.156613]
[1739331782182,0.00122387,95784.0,95777.0,0.030613]
[1739331782392,0.00122387,95784.0,95777.0,0.156613]
[1739331783026,0.00122387,95784.0,95776.0,0.20882]
[1739331783187,0.00122387,95784.0,95778.0,0.156611]
[1739331783576,0.00022387,95784.0,95778.0,0.156611]
[1739331783982,0.00122387,95784.0,95775.0,0.30248005]
[1739331784205,0.00122387,95784.0,95775.0,0.09366005]
[1739331784611,0.00022387,95784.0,95775.0,0.09366005]
[1739331784913,0.00022387,95784.0,95778.0,0.001]
[1739331785119,0.00022387,95784.0,95776.0,0.156615]
[1739331785552,0.00022387,95784.0,95778.0,0.001]
[1739331786101,0.0769,95783.0,95778.0,0.002]
[1739331786749,0.0769,95783.0,95778.0,0.001]
[1739331787588,0.0769,95783.0,95777.0,0.0001066]
[1739331788012,0.0769,95783.0,95778.0,0.002]
[1739331788449,0.0769,95783.0,95778.0,0.001]
[1739331788868,0.0769,95783.0,95777.0,0.0011066]
[1739331789089,0.0769,95783.0,95777.0,0.0021066]
[1739331789318,0.11446853,95783.0,95777.0,0.0011066]
[1739331789881,0.11446853,95783.0,95778.0,0.001]
[1739331790558,0.20064777,95790.0,95778.0,0.002]
[1739331790746,0.156595,95789.0,95778.0,0.002]
[1739331790975,0.156595,95789.0,95777.0,0.0001066]
[1739331791278,0.003,95783.0,95777.0,0.0001066]
[1739331791936,0.156597,95788.0,95777.0,0.0001066]
[1739331792369,0.009,95789.0,95766.0,0.208842]
[1739331792586,0.165594,95789.0,95772.0,0.15662]
[1739331792796,0.163594,95789.0,95772.0,0.15662]
[1739331793005,0.23595923,95789.0,95772.0,0.15662]
[1739331793226,0.23595923,95789.0,95773.0,0.15662]
[1739331793648,0.0804,95788.0,95773.0,0.15662]
[1739331794296,0.003,95783.0,95773.0,0.15662]
[1739331794681,0.0824,95788.0,95773.0,0.15662]
[1739331795063,0.0884,95788.0,95773.0,0.15662]
[1739331795260,0.0904,95788.0,95773.0,0.15662]
[1739331795504,0.06767728,95787.0,95773.0,0.15662]
[1739331795856,0.003,95783.0,95773.0,0.15662]
[1739331796074,0.003,95783.0,95771.0,0.178099]
[1739331796287,0.003,95783.0,95771.0,0.021477]
[1739331796497,0.003,95783.0,95771.0,0.178099]
[1739331796713,0.003,95783.0,95773.0,0.156618]
[1739331797078,0.06767728,95787.0,95771.0,0.021477]
[1739331797297,0.05074878,95786.0,95773.0,0.15662]
[1739331797676,0.0864,95788.0,95773.0,0.15662]
[1739331797899,0.001,95787.0,95773.0,0.15662]
[1739331798137,0.001,95787.0,95774.0,0.156618]
[1739331798138,0.003,95783.0,95774.0,0.156618]
[1739331798554,0.001,95787.0,95774.0,0.156618]
[1739331798761,0.0804,95788.0,95771.0,0.021477]
[1739331798989,0.001,95786.0,95773.0,0.15662]
[1739331799189,0.15125975,95788.0,95772.0,0.156621]
[1739331799322,0.15125975,95788.0,95773.0,0.0001066]
[1739331799552,0.00022387,95787.0,95773.0,0.0001066]
[1739331800025,0.00022387,95787.0,95773.0,0.1567256]
[1739331800245,0.01685628,95786.0,95773.0,0.1567256]
[1739331800444,0.00622387,95787.0,95773.0,0.0001066]
[1739331800619,0.00622387,95787.0,95774.0,0.156617]
[1739331801046,0.00022387,95787.0,95773.0,0.0001066]
[1739331801194,0.001,95786.0,95773.0,0.1567266]
[1739331801400,0.00622387,95787.0,95773.0,0.1567266]
[1739331801611,0.00022387,95787.0,95773.0,0.1567266]
[1739331801851,0.00122387,95787.0,95773.0,0.1567266]
[1739331802051,0.00622387,95787.0,95773.0,0.1567266]
[1739331802251,0.001,95786.0,95774.0,0.03256599]
[1739331802666,0.00622387,95787.0,95774.0,0.03256599]
[1739331802866,0.00722387,95787.0,95774.0,0.03256599]
[1739331803798,0.00122387,95787.0,95774.0,0.03256599]
[1739331804269,0.00622387,95787.0,95775.0,0.09366005]
[1739331804469,0.001,95786.0,95776.0,0.03256599]
[1739331805266,0.06036294,95786.0,95776.0,0.03256599]
[1739331805805,0.156608,95781.0,95776.0,0.03256599]
[1739331806381,0.06636294,95786.0,95776.0,0.03256599]
[1739331806576,0.156605,95783.0,95776.0,0.03256599]
[1739331806832,0.156604,95783.0,95776.0,0.03256599]
[1739331806991,0.21796294,95786.0,95776.0,0.03256599]
[1739331807191,0.1566,95785.0,95775.0,0.00022604]
[1739331807397,0.1566,95785.0,95776.0,0.001]
[1739331807806,0.05820839,95786.0,95776.0,0.001]
[1739331808082,0.05820839,95786.0,95775.0,0.00022604]
[1739331808296,0.003,95786.0,95775.0,0.00022604]
[1739331808730,0.00022387,95787.0,95775.0,0.00022604]
[1739331810393,0.003,95786.0,95775.0,0.00022604]
[1739331810813,0.00022387,95787.0,95775.0,0.00022604]
[1739331811044,0.00122387,95787.0,95773.0,0.0001066]
[1739331811251,0.16182087,95787.0,95773.0,0.0001066]
[1739331811702,0.15782087,95787.0,95773.0,0.0001066]
[1739331811933,0.15682087,95787.0,95773.0,0.0001066]
[1739331812127,0.003,95786.0,95773.0,0.0001066]
[1739331812765,0.0478808,95785.0,95773.0,0.0001066]
[1739331814240,0.0508808,95785.0,95773.0,0.0001066]
[1739331814481,0.30940531,95784.0,95773.0,0.0001066]
[1739331814693,0.279718,95774.0,95773.0,0.0001066]
[1739331814902,0.38222165,95774.0,95773.0,0.0001066]
[1739331815123,0.48308891,95774.0,95773.0,0.0001066]
[1739331816100,0.48308891,95774.0,95773.0,0.0031066]
[1739331817445,0.48708891,95774.0,95773.0,0.0031066]
[1739331817626,0.48708891,95774.0,95773.0,0.0001066]
[1739331817865,0.48808891,95774.0,95773.0,0.0001066]
[1739331823363,0.48408891,95774.0,95773.0,0.0001066]
[1739331823606,0.49708891,95774.0,95773.0,0.0001066]
[1739331823760,0.49608891,95774.0,95773.0,0.0001066]
[1739331823966,0.50008891,95774.0,95773.0,0.0001066]
[1739331824160,0.48708891,95774.0,95773.0,0.0001066]
[1739331824590,0.49408891,95774.0,95773.0,0.0011066]
[1739331825324,0.48308891,95774.0,95773.0,0.0001066]
[1739331825473,0.49708891,95774.0,95773.0,0.0011066]
[1739331825694,0.50408891,95774.0,95773.0,0.0011066]
[1739331826111,0.49008891,95774.0,95773.0,0.0011066]
[1739331826667,0.50408891,95774.0,95773.0,0.0011066]
[1739331826873,0.53654171,95774.0,95773.0,0.0011066]
[1739331827111,0.86214171,95774.0,95773.0,0.0011066]
[1739331829586,0.84814171,95774.0,95773.0,0.0011066]
[1739331830032,0.86214171,95774.0,95773.0,0.0011066]
[1739331830251,0.85514171,95774.0,95773.0,0.0001066]
[1739331830663,0.86214171,95774.0,95773.0,0.0011066]
[1739331831777,0.85514171,95774.0,95773.0,0.0001066]
[1739331832001,0.85514171,95774.0,95759.0,3e-07]
[1739331832002,0.156641,95760.0,95759.0,3e-07]
[1739331832208,0.86044465,95760.0,95759.0,3e-07]
[1739331833056,0.85746512,95760.0,95759.0,3e-07]
[1739331833570,0.86146512,95760.0,95759.0,3e-07]
[1739331833775,0.85746512,95760.0,95759.0,3e-07]
[1739331833927,0.95683463,95760.0,95759.0,3e-07]
[1739331834148,0.96383463,95760.0,95759.0,3e-07]
[1739331834320,0.95989957,95760.0,95759.0,3e-07]
[1739331835836,0.94489957,95760.0,95759.0,3e-07]
[1739331836046,0.95989957,95760.0,95759.0,3e-07]
[1739331836554,0.97016283,95760.0,95759.0,3e-07]
[1739331836759,0.98516283,95760.0,95759.0,3e-07]
[1739331836964,0.99216283,95760.0,95759.0,3e-07]
[1739331837215,0.97716283,95760.0,95759.0,3e-07]
[1739331837417,0.156692,95729.0,95722.0,0.12446799]
[1739331838036,0.208917,95732.0,95722.0,0.12446799]
[1739331838240,0.156691,95730.0,95722.0,0.12446799]
[1739331838875,0.156692,95729.0,95722.0,0.12446799]
[1739331839098,0.161692,95729.0,95722.0,0.12446799]
[1739331839654,0.156692,95729.0,95722.0,0.12446799]
[1739331840233,0.10250365,95731.0,95722.0,0.12446799]
[1739331840448,0.0478808,95730.0,95722.0,0.12446799]
[1739331840659,0.161692,95729.0,95722.0,0.12446799]
[1739331841249,0.005,95729.0,95722.0,0.12446799]
[1739331841634,0.005,95729.0,95714.0,0.15]
[1739331841819,0.005,95729.0,95719.0,0.09630466]
[1739331842235,0.005,95729.0,95720.0,0.0769]
[1739331842438,0.482271,95742.0,95721.0,0.187205]
[1739331842703,0.007,95731.0,95730.0,0.09630466]
[1739331842918,0.007,95731.0,95722.0,0.00104457]
[1739331843077,0.007,95731.0,95723.0,0.156702]
[1739331843288,0.3256,95742.0,95721.0,0.0305]
[1739331843673,0.482271,95742.0,95722.0,0.06215907]
[1739331843870,0.001,95731.0,95722.0,0.06215907]
[1739331844432,0.001,95731.0,95721.0,0.06337983]
[1739331844704,0.3396,95742.0,95721.0,0.06337983]
[1739331844705,0.156674,95740.0,95721.0,0.06337983]
[1739331844882,0.156674,95740.0,95729.0,0.0211859]
[1739331845088,0.156674,95740.0,95721.0,0.06337983]
[1739331845641,0.156674,95740.0,95727.0,0.0206564]
[1739331845842,0.07819677,95739.0,95727.0,0.0206564]
[1739331846905,0.07819677,95739.0,95721.0,0.06337983]
[1739331847300,0.08319677,95739.0,95725.0,0.02070873]
[1739331847498,0.23987277,95739.0,95725.0,0.02070873]
[1739331848525,0.23487277,95739.0,95725.0,0.02070873]
[1739331848734,0.04439909,95738.0,95725.0,0.02070873]
[1739331849521,0.20107609,95738.0,95725.0,0.02070873]
[1739331849928,0.04439909,95738.0,95725.0,0.02070873]
[1739331850456,0.04839909,95738.0,95725.0,0.02070873]
[1739331851704,0.20507609,95738.0,95725.0,0.02070873]
[1739331853472,0.07815909,95736.0,95721.0,0.03287983]
[1739331853675,0.18280365,95735.0,95716.0,0.02088427]
[1739331853874,0.1567,95725.0,95716.0,0.02088427]
[1739331854092,0.208926,95728.0,95716.0,0.02088427]
[1739331854340,0.208929,95726.0,95716.0,0.0001067]
[1739331854567,0.156711,95717.0,95716.0,0.0001067]
[1739331854997,0.15671,95718.0,95716.0,0.0001067]
[1739331855304,0.208942,95721.0,95716.0,0.0001067]
[1739331855435,0.156708,95720.0,95716.0,0.0001067]
[1739331855632,0.00078474,95720.0,95716.0,0.0021067]
[1739331855951,0.157711,95717.0,95716.0,0.0021067]
[1739331856151,0.001,95717.0,95716.0,0.0001067]
[1739331856374,0.156711,95717.0,95716.0,0.0001067]
[1739331856580,0.0477,95720.0,95716.0,0.0001067]
[1739331856821,0.001,95720.0,95716.0,0.0001067]
[1739331857763,0.156703,95722.0,95716.0,0.0001067]
[1739331858271,0.0809,95726.0,95716.0,0.0021067]
[1739331858508,0.208934,95724.0,95716.0,0.0021067]
[1739331858738,0.156704,95722.0,95716.0,0.0001067]
[1739331858966,0.158704,95722.0,95716.0,0.0001067]
[1739331859508,0.156704,95722.0,95716.0,0.0001067]
[1739331859993,0.003,95724.0,95716.0,0.0001067]
[1739331860908,0.156696,95727.0,95716.0,0.0001067]
[1739331861278,0.002,95722.0,95716.0,0.0001067]
[1739331861701,0.156696,95727.0,95716.0,0.0001067]
[1739331861902,0.004,95724.0,95716.0,0.0001067]
[1739331862101,0.004,95724.0,95716.0,0.2090577]
[1739331862372,0.004,95724.0,95716.0,0.0001067]
[1739331862598,0.00022387,95729.0,95718.0,0.156709]
[1739331862771,0.156685,95733.0,95729.0,0.00011351]
[1739331862970,0.156684,95734.0,95729.0,0.00011351]
[1739331863175,0.156688,95732.0,95729.0,0.00011351]
[1739331863878,0.0809,95737.0,95729.0,0.00011351]
[1739331864083,0.156688,95732.0,95729.0,0.00011351]
[1739331864861,0.156689,95731.0,95729.0,0.00011351]
[1739331866164,0.164689,95731.0,95729.0,0.00011351]
[1739331866363,0.15669,95730.0,95729.0,0.00011351]
[1739331867703,0.15769,95730.0,95729.0,0.00011351]
[1739331867898,0.16469,95730.0,95715.0,0.03093521]
[1739331868100,0.16469,95730.0,95715.0,0.02880812]
[1739331868400,0.16469,95730.0,95714.0,0.15]
[1739331868763,0.15769,95730.0,95714.0,0.15]
[1739331868978,0.16369,95730.0,95714.0,0.15]
[1739331869157,0.16469,95730.0,95714.0,0.15]
[1739331869363,0.15769,95730.0,95714.0,0.15]
[1739331869667,0.15869,95730.0,95715.0,0.156713]
[1739331870073,0.15669,95730.0,95715.0,0.156713]
[1739331871017,0.16369,95730.0,95715.0,0.156713]
[1739331871435,0.15669,95730.0,95715.0,0.156713]
[1739331871684,0.18340365,95737.0,95715.0,0.156713]
[1739331871833,0.156693,95729.0,95715.0,0.156713]
[1739331872415,0.156686,95733.0,95719.0,0.14691858]
[1739331872619,0.006,95730.0,95719.0,0.14691858]
[1739331872826,0.16269,95730.0,95716.0,0.00115125]
[1739331873046,0.16269,95730.0,95719.0,0.02058477]
[1739331873047,0.006,95730.0,95719.0,0.02058477]
[1739331873430,0.00622387,95730.0,95719.0,0.02058477]
[1739331873832,0.00022387,95730.0,95719.0,0.02058477]
[1739331874047,0.1548659,95733.0,95719.0,0.17729177]
[1739331874250,0.005,95729.0,95719.0,0.17729177]
[1739331874624,0.005,95729.0,95719.0,0.02058477]
[1739331874753,0.156687,95732.0,95719.0,0.17729277]
[1739331874974,0.005,95730.0,95719.0,0.17729277]
[1739331875458,0.156689,95731.0,95719.0,0.17729277]
[1739331875677,0.156689,95731.0,95719.0,0.02058477]
[1739331875858,0.004,95729.0,95719.0,0.02058477]
[1739331877072,0.15669,95730.0,95719.0,0.02058477]
[1739331877257,0.2222312,95730.0,95717.0,0.05129477]
[1739331877476,0.0655412,95730.0,95716.0,0.0001066]
[1739331877697,0.156692,95729.0,95717.0,0.15671]
[1739331878630,0.160692,95729.0,95719.0,0.02114932]
[1739331879769,0.160692,95729.0,95719.0,0.09639831]
[1739331880147,0.156692,95729.0,95719.0,0.09639831]
[1739331880528,0.160692,95729.0,95719.0,0.09639831]
[1739331880721,0.004,95729.0,95719.0,0.09639831]
[1739331880947,0.156694,95728.0,95719.0,0.09639831]
[1739331881160,0.01151335,95727.0,95719.0,0.09639831]
[1739331881381,0.156694,95728.0,95719.0,0.09639831]
[1739331883596,0.159694,95728.0,95719.0,0.09739831]
[1739331887325,0.159694,95728.0,95718.0,0.18493825]
[1739331888050,0.159694,95728.0,95722.0,0.02143396]
[1739331888773,0.159694,95728.0,95718.0,0.18493825]
[1739331889269,0.156694,95728.0,95718.0,0.18493825]
[1739331889508,0.159694,95728.0,95718.0,0.18493825]
[1739331889741,0.159694,95728.0,95720.0,0.02077056]
[1739331890222,0.159694,95728.0,95718.0,0.18493825]
[1739331890563,0.156694,95728.0,95718.0,0.18493825]
[1739331890794,0.156694,95728.0,95719.0,0.02097356]
[1739331891028,0.160694,95728.0,95719.0,0.02097356]
[1739331892355,0.156694,95728.0,95718.0,0.19279662]
[1739331892569,0.00022387,95730.0,95718.0,0.19279662]
[1739331892834,0.003,95728.0,95727.0,0.306695]
[1739331893274,0.00022387,95730.0,95727.0,0.306695]
[1739331893473,0.003,95728.0,95727.0,0.306695]
[1739331893688,0.003,95728.0,95727.0,0.15]
[1739331893909,0.00022387,95730.0,95727.0,0.15]
[1739331894367,0.003,95728.0,95727.0,0.15]
[1739331895169,0.00015707,95730.0,95727.0,0.306695]
[1739331895820,0.00515707,95730.0,95727.0,0.306695]
[1739331896416,0.00515707,95730.0,95727.0,0.15]
[1739331897271,0.00515707,95730.0,95726.0,0.156695]
[1739331897800,0.00515707,95730.0,95728.0,0.156693]
[1739331898550,0.00015707,95730.0,95728.0,0.156693]
[1739331898907,0.00015707,95730.0,95727.0,0.156695]
[1739331899558,0.00415707,95730.0,95727.0,0.156695]
[1739331899885,0.00415707,95730.0,95728.0,0.156692]
[1739331900063,0.00015707,95730.0,95728.0,0.156692]
[1739331900321,0.00415707,95730.0,95728.0,0.156692]
[1739331900504,0.00415707,95730.0,95729.0,0.156692]
[1739331901679,0.00015707,95730.0,95729.0,0.156692]
[1739331901902,0.00015707,95730.0,95728.0,0.003]
[1739331902101,0.00115707,95730.0,95729.0,0.156692]
[1739331902292,0.00115707,95730.0,95728.0,0.159693]
[1739331902422,0.00015707,95730.0,95728.0,0.156693]
[1739331902625,0.00115707,95730.0,95729.0,0.005]
[1739331903094,0.00115707,95730.0,95726.0,0.208928]
[1739331903315,0.00015707,95730.0,95727.0,0.156695]
[1739331903712,0.00115707,95730.0,95728.0,0.005]
[1739331903915,0.00115707,95730.0,95729.0,0.156692]
[1739331904808,0.00015707,95730.0,95729.0,0.156692]
[1739331905253,0.00115707,95730.0,95729.0,0.156692]
[1739331905656,0.00015707,95730.0,95729.0,0.156692]
[1739331905903,0.00115707,95730.0,95729.0,0.161692]
[1739331906299,0.00115707,95730.0,95729.0,0.16273649]
[1739331906475,0.00015707,95730.0,95729.0,0.15773649]
[1739331907394,0.00015707,95730.0,95729.0,0.00104449]
[1739331907611,0.00015707,95730.0,95729.0,0.15773649]
[1739331907823,0.00015707,95730.0,95729.0,0.156692]
[1739331908143,0.00015707,95730.0,95729.0,0.160692]
[1739331908604,0.00015707,95730.0,95729.0,0.156692]
[1739331908818,0.29268866,95746.0,95729.0,0.156692]
[1739331908819,0.156669,95744.0,95733.0,0.25308231]
[1739331909487,0.156669,95743.0,95736.0,0.156679]
[1739331909727,0.156666,95745.0,95733.0,0.09639831]
[1739331909945,0.08380166,95746.0,95738.0,0.156677]
[1739331910162,0.156667,95744.0,95738.0,0.156677]
[1739331910374,0.156667,95744.0,95735.0,0.20891]
[1739331910375,0.156667,95744.0,95737.0,0.156679]
[1739331910586,0.156667,95744.0,95738.0,0.156677]
[1739331910728,0.208885,95747.0,95738.0,0.156677]
[1739331910931,0.156668,95744.0,95737.0,0.09639831]
[1739331911619,0.208879,95750.0,95737.0,0.09639831]
[1739331911844,0.156669,95743.0,95737.0,0.09639831]
[1739331912875,0.156669,95743.0,95737.0,0.25307731]
[1739331914353,0.20911487,95744.0,95737.0,0.09639831]
[1739331914579,0.20911487,95744.0,95737.0,0.09739831]
[1739331914580,0.05264047,95743.0,95737.0,0.09739831]
[1739331914786,0.156673,95741.0,95737.0,0.09739831]
[1739331914989,0.156673,95741.0,95737.0,0.001]
[1739331915198,0.156673,95741.0,95735.0,0.1850727]
[1739331915848,0.156689,95731.0,95723.0,0.1567]
[1739331916030,0.254312,95734.0,95725.0,0.156698]
[1739331916356,0.254312,95734.0,95721.0,0.208939]
[1739331916357,0.156685,95733.0,95724.0,0.17736702]
[1739331916562,0.0454,95734.0,95724.0,0.02066802]
[1739331916777,0.156693,95729.0,95724.0,0.02066802]
[1739331916994,0.0815,95728.0,95718.0,0.0001066]
[1739331917203,0.12768474,95728.0,95718.0,0.0001066]
[1739331917844,0.12768474,95728.0,95718.0,0.02810833]
[1739331918077,0.13468474,95728.0,95727.0,0.0011066]
[1739331918773,0.12768474,95728.0,95727.0,0.0001066]
[1739331919019,0.12768474,95728.0,95727.0,0.0011066]
[1739331919020,0.13468474,95728.0,95727.0,0.0011066]
[1739331919938,0.30810976,95728.0,95727.0,0.0011066]
[1739331920160,0.30732502,95728.0,95727.0,0.0011066]
[1739331921705,0.30032502,95728.0,95727.0,0.0001066]
[1739331922182,0.30732502,95728.0,95727.0,0.0011066]
[1739331922397,0.30732502,95728.0,95695.0,0.156746]
[1739331922398,0.0815,95706.0,95700.0,0.09639831]
[1739331922613,0.0815,95706.0,95696.0,0.27373215]
[1739331923487,0.238231,95706.0,95696.0,0.27373215]
[1739331923644,0.238231,95706.0,95696.0,0.17733384]
[1739331924257,0.0815,95706.0,95696.0,0.17733384]
[1739331924551,0.0835,95706.0,95696.0,0.17733384]
[1739331924986,0.03457134,95705.0,95693.0,0.09343937]
[1739331925188,0.0835,95706.0,95693.0,0.09343937]
[1739331925189,0.156748,95695.0,95693.0,0.09343937]
[1739331925403,0.00078474,95705.0,95693.0,0.09343937]
[1739331925832,0.156748,95695.0,95693.0,0.09343937]
[1739331926050,0.156745,95697.0,95693.0,0.09343937]
[1739331926379,0.156749,95694.0,95693.0,0.09343937]
[1739331926557,0.238249,95694.0,95693.0,0.09343937]
[1739331928003,0.239249,95694.0,95693.0,0.002]
[1739331930478,0.38715265,95694.0,95693.0,0.002]
[1739331930886,0.22940365,95694.0,95674.0,0.02533849]
[1739331931084,0.22940365,95694.0,95666.0,0.09343937]
[1739331931085,0.1255,95675.0,95666.0,0.09343937]
[1739331931285,0.156788,95671.0,95660.0,0.16749154]